bitfinex/quotes_BTCUSD_20240729
["timestamp","ask_amount","ask_price","bid_price","bid_amount"]
[1722237040344,0.08379587,69697.0,69696.0,0.006924]
[1722237040595,0.24102531,69697.0,69696.0,0.006924]
[1722237040733,0.12624331,69697.0,69696.0,0.006924]
[1722237041737,0.14876715,69697.0,69696.0,0.006924]
[1722237043174,0.14776715,69697.0,69696.0,0.006924]
[1722237043422,0.14876715,69697.0,69696.0,0.006924]
[1722237044692,0.12624331,69697.0,69696.0,0.006924]
[1722237044897,0.24102531,69697.0,69696.0,0.006924]
[1722237045424,0.12624331,69697.0,69696.0,0.006924]
[1722237046209,0.12584669,69697.0,69696.0,0.006924]
[1722237046410,0.20033988,69697.0,69696.0,0.006924]
[1722237047802,0.33764575,69697.0,69696.0,0.006924]
[1722237047930,0.22286375,69697.0,69696.0,0.006924]
[1722237048150,0.31512188,69697.0,69696.0,0.006924]
[1722237048943,0.54468688,69697.0,69696.0,0.006924]
[1722237049192,0.31512188,69697.0,69696.0,0.006924]
[1722237049844,0.20033988,69697.0,69696.0,0.006924]
[1722237049992,0.54478888,69697.0,69696.0,0.006924]
[1722237050194,0.31522388,69697.0,69696.0,0.006924]
[1722237050573,0.20044188,69697.0,69696.0,0.006924]
[1722237050774,0.31522388,69697.0,69696.0,0.006924]
[1722237051403,0.33774795,69697.0,69696.0,0.006924]
[1722237052250,0.33872279,69697.0,69696.0,0.006924]
[1722237052637,0.33872478,69697.0,69696.0,0.006924]
[1722237053257,0.22110194,69697.0,69696.0,0.006924]
[1722237053457,0.33864921,69697.0,69696.0,0.006924]
[1722237053668,0.22386721,69697.0,69696.0,0.006924]
[1722237053866,0.33864921,69697.0,69696.0,0.006924]
[1722237054104,0.22386721,69697.0,69696.0,0.006924]
[1722237054732,0.33864921,69697.0,69696.0,0.006924]
[1722237055839,0.22110194,69697.0,69696.0,0.006924]
[1722237055986,0.33937176,69697.0,69696.0,0.006924]
[1722237056660,0.31684769,69697.0,69696.0,0.006924]
[1722237058652,0.46119747,69697.0,69696.0,0.006924]
[1722237059014,0.46082203,69697.0,69696.0,0.006924]
[1722237059396,0.46082079,69697.0,69696.0,0.006924]
[1722237059598,0.54607247,69697.0,69696.0,0.006924]
[1722237059797,0.33903122,69697.0,69696.0,0.006924]
[1722237060449,0.22424922,69697.0,69696.0,0.006924]
[1722237060670,0.48333998,69697.0,69696.0,0.006924]
[1722237060838,0.14420933,69697.0,69696.0,0.006924]
[1722237061069,0.23730747,69697.0,69696.0,0.006924]
[1722237061402,0.12227574,69697.0,69696.0,0.006924]
[1722237061630,0.23705774,69697.0,69696.0,0.006924]
[1722237061830,0.23805774,69697.0,69696.0,0.006924]
[1722237062619,0.38238175,69697.0,69696.0,0.006924]
[1722237064456,0.40490537,69697.0,69696.0,0.006924]
[1722237064661,0.63447037,69697.0,69696.0,0.006924]
[1722237064828,0.63834636,69697.0,69696.0,0.006924]
[1722237065230,0.29395838,69697.0,69696.0,0.006924]
[1722237065430,0.55130204,69697.0,69696.0,0.006924]
[1722237065634,0.5531309,69697.0,69696.0,0.006924]
[1722237066034,0.55312067,69697.0,69696.0,0.006924]
[1722237066677,0.43833867,69697.0,69696.0,0.006924]
[1722237066879,0.55312067,69697.0,69696.0,0.006924]
[1722237067059,0.40874038,69697.0,69696.0,0.006924]
[1722237067459,0.63830538,69697.0,69696.0,0.006924]
[1722237067661,0.52066649,69697.0,69696.0,0.006924]
[1722237068028,0.4088783,69697.0,69696.0,0.006924]
[1722237068242,0.8680083,69697.0,69696.0,0.006924]
[1722237068370,1.0975733,69697.0,69696.0,0.006924]
[1722237070015,1.0965733,69697.0,69696.0,0.006924]
[1722237070158,1.0975733,69697.0,69696.0,0.006924]
[1722237070355,1.0965733,69697.0,69696.0,0.006924]
[1722237071053,1.0537604,69697.0,69696.0,0.006924]
[1722237071199,1.09630438,69697.0,69696.0,0.006924]
[1722237071598,1.09631372,69697.0,69696.0,0.006924]
[1722237071803,1.09731372,69697.0,69696.0,0.006924]
[1722237072987,1.0747901,69697.0,69696.0,0.006924]
[1722237073393,0.8452251,69697.0,69696.0,0.006924]
[1722237073834,0.8457605,69697.0,69696.0,0.006924]
[1722237074177,0.84690009,69697.0,69696.0,0.006924]
[1722237076001,0.84590009,69697.0,69696.0,0.006924]
[1722237076207,1.07546509,69697.0,69696.0,0.006924]
[1722237076449,1.07646509,69697.0,69696.0,0.006924]
[1722237077025,1.07546509,69697.0,69696.0,0.006924]
[1722237077227,0.84690009,69697.0,69696.0,0.006924]
[1722237077427,0.84661782,69697.0,69696.0,0.006924]
[1722237077636,0.86914205,69697.0,69696.0,0.006924]
[1722237077831,0.84661782,69697.0,69696.0,0.006924]
[1722237079125,0.84561782,69697.0,69696.0,0.006924]
[1722237079330,1.54203782,69697.0,69696.0,0.006924]
[1722237079554,1.7755034,69697.0,69696.0,0.006924]
[1722237079752,1.70607581,69697.0,69696.0,0.006924]
[1722237079969,1.12227687,69684.0,69683.0,0.013747]
[1722237080238,1.59008682,69684.0,69683.0,0.013747]
[1722237080450,1.38797687,69684.0,69683.0,0.013747]
[1722237080606,1.52623566,69684.0,69683.0,0.013747]
[1722237080822,1.54876678,69684.0,69683.0,0.013747]
[1722237081023,1.41050799,69684.0,69683.0,0.013747]
[1722237081196,1.52523654,69684.0,69683.0,0.013747]
[1722237081397,1.52623654,69684.0,69683.0,0.013747]
[1722237081769,1.53123654,69684.0,69683.0,0.013747]
[1722237081984,1.53423654,69684.0,69683.0,0.013747]
[1722237083369,1.53490976,69684.0,69683.0,0.013747]
[1722237083481,1.39597687,69684.0,69683.0,0.013747]
[1722237083689,1.53497142,69684.0,69683.0,0.013747]
[1722237084204,1.67887614,69684.0,69683.0,0.013747]
[1722237084600,1.55750248,69684.0,69683.0,0.013747]
[1722237085026,1.32789548,69684.0,69683.0,0.013747]
[1722237085396,1.30189548,69684.0,69683.0,0.013747]
[1722237086524,1.30689548,69684.0,69683.0,0.013747]
[1722237086898,1.30761709,69684.0,69683.0,0.013747]
[1722237087125,1.29661709,69684.0,69683.0,0.013747]
[1722237087324,1.54922409,69684.0,69683.0,0.013747]
[1722237087537,1.55922409,69684.0,69683.0,0.013747]
[1722237087663,1.63842409,69684.0,69683.0,0.013747]
[1722237088007,1.64142409,69684.0,69683.0,0.013747]
[1722237088754,0.89176789,69683.0,69682.0,0.00194561]
[1722237088954,1.21579902,69683.0,69682.0,0.00194561]
[1722237089211,1.19179902,69683.0,69682.0,0.00194561]
[1722237089626,0.64728702,69683.0,69682.0,0.00194561]
[1722237089829,0.05617102,69683.0,69682.0,0.00194561]
[1722237090034,0.06528261,69683.0,69682.0,0.49176661]
[1722237090172,0.0661225,69683.0,69682.0,0.49176661]
[1722237090380,0.00275587,69683.0,69682.0,0.17895261]
[1722237090583,0.00275587,69683.0,69682.0,0.14734561]
[1722237090839,0.01075587,69683.0,69682.0,0.14734561]
[1722237091048,0.06412254,69683.0,69682.0,0.00349981]
[1722237091253,0.06112254,69683.0,69682.0,0.08514561]
[1722237091455,0.2824407,69683.0,69682.0,0.08514561]
[1722237091627,0.1676357,69683.0,69682.0,0.00194561]
[1722237092038,0.2774407,69683.0,69682.0,0.00194561]
[1722237092450,0.30096936,69683.0,69682.0,0.00194561]
[1722237092786,0.30055318,69683.0,69682.0,0.00349981]
[1722237092900,0.18574818,69683.0,69682.0,0.00194561]
[1722237093099,0.13255531,69683.0,69682.0,0.00194561]
[1722237093310,0.16445994,69683.0,69682.0,0.00349981]
[1722237093517,0.14193205,69683.0,69682.0,0.00349981]
[1722237093720,0.05485404,69683.0,69682.0,0.34792081]
[1722237093919,0.05485404,69683.0,69682.0,0.34636661]
[1722237094142,0.09748516,69683.0,69682.0,0.34636661]
[1722237094337,0.09748516,69683.0,69682.0,0.34792081]
[1722237094551,1.00853193,69683.0,69682.0,0.00194561]
[1722237094753,0.77892093,69683.0,69682.0,0.00194561]
[1722237095611,0.00248669,69673.0,69672.0,0.08547346]
[1722237095916,0.2344512,69673.0,69672.0,0.08547346]
[1722237096348,0.23430707,69673.0,69672.0,0.08547346]
[1722237096752,0.25683829,69673.0,69672.0,0.08547346]
[1722237097164,0.25783829,69673.0,69672.0,0.08547346]
[1722237097289,0.23530707,69673.0,69672.0,0.08547346]
[1722237098339,0.11864518,69673.0,69672.0,0.08547346]
[1722237098663,0.12048507,69673.0,69672.0,0.08547346]
[1722237098872,0.05506636,69673.0,69672.0,0.08547346]
[1722237099020,0.05555305,69673.0,69672.0,0.08547346]
[1722237099221,0.12047763,69673.0,69672.0,0.08547346]
[1722237099430,0.12040244,69673.0,69672.0,0.08547346]
[1722237099962,0.00348669,69673.0,69672.0,0.08547346]
[1722237100196,0.12034919,69673.0,69672.0,0.08547346]
[1722237100803,0.12034919,69673.0,69672.0,0.20029646]
[1722237100804,0.14039325,69673.0,69672.0,0.20029646]
[1722237101035,0.14039325,69673.0,69672.0,0.73689046]
[1722237101036,0.07646881,69673.0,69672.0,0.73689046]
[1722237101206,0.02353075,69673.0,69672.0,0.96653746]
[1722237101408,0.001,69673.0,69672.0,1.01553746]
[1722237101608,0.001,69673.0,69672.0,0.97153746]
[1722237101609,0.002,69673.0,69672.0,0.97153746]
[1722237101811,0.002,69673.0,69672.0,1.02053746]
[1722237101965,0.002,69673.0,69672.0,1.02089066]
[1722237102186,0.002,69673.0,69672.0,1.12105077]
[1722237102392,0.002,69673.0,69672.0,1.35069777]
[1722237102617,0.00084,69683.0,69682.0,1.01276231]
[1722237102824,0.00084,69683.0,69682.0,1.09596231]
[1722237103479,0.00084,69683.0,69682.0,1.34237631]
[1722237103680,0.00084,69683.0,69682.0,1.49377631]
[1722237103904,0.06478735,69697.0,69696.0,0.871288]
[1722237103905,0.04347156,69697.0,69696.0,0.871288]
[1722237104156,0.00084,69697.0,69696.0,0.9314412]
[1722237104356,0.00084,69697.0,69696.0,1.03060131]
[1722237104564,0.00084,69697.0,69696.0,0.9304412]
[1722237104775,0.02336081,69697.0,69696.0,0.98124811]
[1722237105327,0.02336081,69697.0,69696.0,1.18914811]
[1722237105526,0.02336081,69697.0,69696.0,1.088988]
[1722237105836,0.02336081,69697.0,69696.0,0.551252]
[1722237106036,0.02436081,69697.0,69696.0,0.356352]
[1722237106163,0.00184,69697.0,69696.0,0.356352]
[1722237106506,0.00184,69697.0,69696.0,0.57292]
[1722237106507,0.00084,69697.0,69696.0,0.57292]
[1722237106686,0.00084,69697.0,69696.0,0.343352]
[1722237106887,0.00184,69697.0,69696.0,0.357352]
[1722237107064,0.00184,69697.0,69696.0,0.58692]
[1722237107975,0.00184,69697.0,69696.0,0.59455046]
[1722237108488,0.00184,69697.0,69696.0,0.64355046]
[1722237108691,0.00284,69697.0,69696.0,0.65755046]
[1722237108863,0.00284,69697.0,69696.0,0.60855046]
[1722237109018,0.00284,69697.0,69696.0,0.65755046]
[1722237109220,0.00284,69697.0,69696.0,0.37898246]
[1722237111342,0.4857338,69697.0,69696.0,0.028]
[1722237111597,0.48657369,69697.0,69696.0,0.028]
[1722237111740,0.4857338,69697.0,69696.0,0.028]
[1722237111943,0.53935092,69697.0,69696.0,0.028]
[1722237112159,0.76891592,69697.0,69696.0,0.028]
[1722237112361,0.83375353,69697.0,69696.0,0.028]
[1722237112752,0.76991592,69697.0,69696.0,0.028]
[1722237113672,0.87754647,69697.0,69696.0,0.028]
[1722237114070,0.76991592,69697.0,69696.0,0.028]
[1722237114572,0.85502246,69697.0,69696.0,0.028]
[1722237114975,0.80224996,69697.0,69696.0,0.028]
[1722237115160,1.19691435,69697.0,69696.0,0.028]
[1722237115365,0.99798387,69697.0,69696.0,0.028]
[1722237116362,0.99698387,69697.0,69696.0,0.014]
[1722237117148,0.114795,69690.0,69682.0,0.12332559]
[1722237117333,0.00148669,69684.0,69682.0,0.12332559]
[1722237117544,0.00148669,69684.0,69682.0,0.2079]
[1722237117903,0.0815,69685.0,69675.0,0.0493532]
[1722237117904,0.00148669,69680.0,69679.0,0.00852915]
[1722237118089,0.2302838,69675.0,69670.0,0.0622]
[1722237118290,0.3451128,69673.0,69669.0,0.00153703]
[1722237118494,0.0006468,69673.0,69665.0,0.049]
[1722237118779,0.0821468,69674.0,69665.0,0.049]
[1722237118950,0.0821468,69674.0,69673.0,0.114822]
[1722237118951,0.0006468,69674.0,69673.0,0.114822]
[1722237119147,0.0006468,69674.0,69669.0,0.437556]
[1722237119350,0.0006468,69674.0,69673.0,0.114822]
[1722237119707,0.00148669,69674.0,69673.0,0.344465]
[1722237120155,0.00148669,69674.0,69673.0,0.114822]
[1722237120299,0.001,69673.0,69672.0,0.01227346]
[1722237120496,0.72169669,69673.0,69672.0,0.01227346]
[1722237120703,0.54396262,69673.0,69672.0,0.01227346]
[1722237120916,0.54312357,69673.0,69672.0,0.01227346]
[1722237121130,0.54496682,69673.0,69672.0,0.01227346]
[1722237121335,0.77461082,69673.0,69672.0,0.01227346]
[1722237121533,0.31348293,69673.0,69672.0,0.01227346]
[1722237121772,0.33601292,69673.0,69672.0,0.01227346]
[1722237121988,0.56749681,69673.0,69672.0,0.01227346]
[1722237122838,0.77361082,69673.0,69672.0,0.01227346]
[1722237123141,0.81712652,69673.0,69672.0,0.01227346]
[1722237123288,0.81712652,69673.0,69672.0,0.02025346]
[1722237123507,0.81676695,69673.0,69672.0,0.02725346]
[1722237123709,0.62425456,69673.0,69672.0,0.02725346]
[1722237124089,0.62425456,69673.0,69672.0,0.01725346]
[1722237124295,0.62609445,69673.0,69672.0,0.01725346]
[1722237124635,0.50943256,69673.0,69672.0,0.01725346]
[1722237124996,0.45787469,69673.0,69672.0,0.01725346]
[1722237125377,0.4560348,69673.0,69672.0,0.01725346]
[1722237125584,0.45887469,69673.0,69672.0,0.02725346]
[1722237125808,0.11340869,69673.0,69672.0,0.02725346]
[1722237126073,0.02517774,69673.0,69672.0,0.02725346]
[1722237126243,0.00348669,69673.0,69672.0,0.14207646]
[1722237126450,0.0026468,69673.0,69672.0,0.37172346]
[1722237127245,0.002,69673.0,69672.0,0.60137046]
[1722237127412,0.002,69673.0,69672.0,0.65037046]
[1722237127906,0.002,69673.0,69672.0,0.60137046]
[1722237128940,0.002,69673.0,69672.0,0.59137046]
[1722237128941,0.001,69673.0,69672.0,0.59137046]
[1722237129346,0.02452854,69673.0,69672.0,0.60537046]
[1722237129553,0.02352854,69673.0,69672.0,0.59837046]
[1722237129755,0.02452854,69673.0,69672.0,0.61237046]
[1722237130278,0.02452854,69673.0,69672.0,0.89101746]
[1722237130486,0.02452854,69673.0,69672.0,1.40392132]
[1722237130680,0.01033041,69673.0,69672.0,1.39192132]
[1722237130880,0.001,69673.0,69672.0,1.39192132]
[1722237131095,0.00148669,69689.0,69688.0,0.573985]
[1722237131294,0.0006468,69689.0,69688.0,0.344391]
[1722237131498,0.00148669,69689.0,69688.0,0.393391]
[1722237132461,0.0006468,69689.0,69688.0,0.344391]
[1722237132690,0.00148669,69689.0,69688.0,0.344391]
[1722237132886,0.00148669,69689.0,69688.0,0.393391]
[1722237133089,0.0006468,69689.0,69688.0,0.393391]
[1722237133293,0.00148669,69689.0,69688.0,0.622985]
[1722237134892,0.02401051,69689.0,69688.0,0.622985]
[1722237135114,0.02317062,69689.0,69688.0,0.622985]
[1722237135379,0.02401051,69689.0,69688.0,0.622985]
[1722237135651,0.00148669,69689.0,69688.0,0.636985]
[1722237135851,0.00148669,69689.0,69688.0,0.622985]
[1722237136816,0.0006468,69689.0,69688.0,0.622985]
[1722237137297,0.0006468,69689.0,69688.0,0.636985]
[1722237137765,0.00148669,69689.0,69688.0,0.636985]
[1722237138293,0.00148669,69689.0,69688.0,0.650985]
[1722237138495,0.0006468,69689.0,69688.0,0.650985]
[1722237138696,0.02317058,69689.0,69688.0,0.650985]
[1722237138972,0.02317058,69689.0,69688.0,0.636985]
[1722237139278,0.00148669,69689.0,69688.0,0.650985]
[1722237139510,0.00148669,69689.0,69688.0,0.65956417]
[1722237140228,0.0006468,69689.0,69688.0,0.65956417]
[1722237140597,0.0006468,69689.0,69688.0,0.64556417]
[1722237140936,0.2569418,69689.0,69688.0,0.03657917]
[1722237141146,0.31256897,69689.0,69688.0,0.014]
[1722237141391,0.31256897,69689.0,69688.0,0.028]
[1722237141548,0.58472149,69689.0,69688.0,0.028]
[1722237141753,0.3532906,69689.0,69688.0,0.028]
[1722237141956,0.19585477,69689.0,69688.0,0.028]
[1722237142164,0.21837989,69689.0,69688.0,0.028]
[1722237142378,0.16467192,69689.0,69688.0,0.028]
[1722237142582,0.19602398,69689.0,69688.0,0.028]
[1722237143088,0.19786387,69689.0,69688.0,0.028]
[1722237143261,0.19686387,69689.0,69688.0,0.028]
[1722237143404,0.58480994,69689.0,69688.0,0.028]
[1722237143616,0.77184087,69689.0,69688.0,0.028]
[1722237143817,0.60508998,69689.0,69688.0,0.028]
[1722237144040,0.62737002,69689.0,69688.0,0.028]
[1722237144429,0.54224987,69689.0,69688.0,0.028]
[1722237144629,0.87824106,69689.0,69688.0,0.028]
[1722237144952,0.77184087,69689.0,69688.0,0.028]
[1722237145721,0.77217677,69689.0,69688.0,0.014]
[1722237145934,0.77117677,69689.0,69688.0,0.007]
[1722237146176,0.79470374,69689.0,69688.0,0.007]
[1722237146345,0.79470374,69689.0,69688.0,0.013]
[1722237146759,0.79470374,69689.0,69688.0,0.007]
[1722237147116,0.79470374,69689.0,69688.0,0.013]
[1722237147318,0.88099374,69689.0,69688.0,0.013]
[1722237147534,0.81670374,69689.0,69688.0,0.013]
[1722237147733,0.79470374,69689.0,69688.0,0.013]
[1722237147938,0.56511274,69689.0,69688.0,0.013]
[1722237148139,0.79370374,69689.0,69688.0,0.013]
[1722237148361,0.79470374,69689.0,69688.0,0.013]
[1722237148559,0.79470374,69689.0,69688.0,0.006]
[1722237148775,0.79456681,69689.0,69688.0,0.008]
[1722237149125,0.79356681,69689.0,69688.0,0.008]
[1722237149293,0.74049066,69689.0,69688.0,0.008]
[1722237149432,0.79408427,69689.0,69688.0,0.008]
[1722237149645,0.79408427,69689.0,69688.0,0.002]
[1722237149646,0.79308427,69689.0,69688.0,0.002]
[1722237149841,0.79408427,69689.0,69688.0,0.003]
[1722237150467,0.7715573,69689.0,69688.0,0.002]
[1722237150673,0.7705573,69689.0,69688.0,0.005]
[1722237151470,0.77051211,69689.0,69688.0,0.003]
[1722237152112,0.77050935,69689.0,69688.0,0.003]
[1722237152318,0.77150935,69689.0,69688.0,0.003]
[1722237153018,0.77150935,69689.0,69688.0,0.006]
[1722237153255,0.77150935,69689.0,69688.0,0.003]
[1722237153426,0.77050935,69689.0,69688.0,0.003]
[1722237153679,0.79303638,69689.0,69688.0,0.006]
[1722237153866,0.79403638,69689.0,69688.0,0.006]
[1722237154061,0.79303638,69689.0,69688.0,0.006]
[1722237154268,0.79403638,69689.0,69688.0,0.006]
[1722237154500,0.62712434,69689.0,69688.0,0.006]
[1722237154710,0.31232735,69689.0,69688.0,0.006]
[1722237154838,0.19753235,69689.0,69688.0,0.006]
[1722237155042,0.25878169,69689.0,69688.0,0.003]
[1722237155407,0.19731772,69689.0,69688.0,0.003]
[1722237155926,0.19731772,69689.0,69686.0,0.114799]
[1722237156122,0.05333103,69688.0,69684.0,0.00798]
[1722237156328,0.10651837,69686.0,69685.0,0.574009]
[1722237156549,0.11874639,69686.0,69685.0,0.574009]
[1722237156748,0.1179065,69686.0,69685.0,0.803613]
[1722237156949,0.05481772,69686.0,69685.0,0.574009]
[1722237157829,0.07734335,69686.0,69685.0,0.574009]
[1722237158198,0.11996562,69686.0,69685.0,0.574009]
[1722237158358,0.07645771,69686.0,69685.0,0.623009]
[1722237158553,0.07645771,69686.0,69685.0,0.574009]
[1722237158795,0.02317243,69686.0,69685.0,0.587009]
[1722237158990,0.07645231,69686.0,69685.0,0.587009]
[1722237159211,0.0772922,69686.0,69685.0,0.587009]
[1722237159498,0.05476657,69686.0,69685.0,0.587009]
[1722237159935,0.05392668,69686.0,69685.0,0.357405]
[1722237160111,0.14000273,69686.0,69685.0,0.587009]
[1722237160330,0.14000273,69686.0,69685.0,0.574009]
[1722237160511,0.05476657,69686.0,69685.0,0.574009]
[1722237160709,0.05476657,69686.0,69685.0,0.587009]
[1722237160911,0.13999614,69686.0,69685.0,0.587009]
[1722237161117,0.05476657,69686.0,69685.0,0.574009]
[1722237161336,0.00148669,69686.0,69685.0,0.574009]
[1722237161538,0.13931081,69686.0,69685.0,0.588009]
[1722237161789,0.16183623,69686.0,69685.0,0.574009]
[1722237162079,0.05408645,69686.0,69685.0,0.588009]
[1722237162581,0.07661215,69686.0,69685.0,0.574009]
[1722237162735,0.14052602,69686.0,69685.0,0.588009]
[1722237163540,0.14052784,69686.0,69685.0,0.588009]
[1722237164038,0.07661215,69686.0,69685.0,0.588009]
[1722237164239,0.07661215,69686.0,69685.0,0.602009]
[1722237164680,0.07677479,69686.0,69685.0,0.602009]
[1722237164880,0.19345403,69686.0,69685.0,0.588009]
[1722237165083,0.14069163,69686.0,69685.0,0.588009]
[1722237165240,0.14069163,69686.0,69685.0,0.602009]
[1722237165450,0.13920494,69686.0,69685.0,0.602009]
[1722237165670,0.13985174,69686.0,69685.0,0.588009]
[1722237165843,0.14069163,69686.0,69685.0,0.588009]
[1722237166072,0.07677479,69686.0,69685.0,0.602009]
[1722237166267,0.14069163,69686.0,69685.0,0.602009]
[1722237166445,0.11816593,69686.0,69685.0,0.602009]
[1722237167566,0.11667924,69686.0,69685.0,0.602009]
[1722237167965,0.11667924,69686.0,69685.0,0.028]
[1722237167966,0.0006468,69686.0,69685.0,0.028]
[1722237168184,0.0006468,69686.0,69685.0,0.7160798]
[1722237168185,0.11693679,69686.0,69685.0,0.7160798]
[1722237168362,0.05293441,69686.0,69685.0,0.305002]
[1722237168563,0.04351666,69689.0,69688.0,0.852579]
[1722237168759,0.09659594,69689.0,69688.0,0.852579]
[1722237168964,0.09659594,69689.0,69688.0,0.803579]
[1722237170029,0.11912012,69689.0,69688.0,0.803579]
[1722237170371,0.07644346,69689.0,69688.0,0.803579]
[1722237170567,0.05380585,69689.0,69688.0,0.803579]
[1722237170968,0.00084,69689.0,69688.0,0.803579]
[1722237171418,0.05380066,69689.0,69688.0,0.803579]
[1722237171616,0.05380066,69689.0,69688.0,0.830579]
[1722237172032,0.05444746,69689.0,69688.0,0.600985]
[1722237172260,0.21701385,69689.0,69688.0,0.371391]
[1722237172552,0.23919534,69689.0,69688.0,0.371391]
[1722237172741,0.23919534,69689.0,69688.0,0.358391]
[1722237172882,0.23835545,69689.0,69688.0,0.358391]
[1722237173082,0.23919534,69689.0,69688.0,0.371391]
[1722237173278,0.13248735,69689.0,69688.0,0.371391]
[1722237174441,0.13182896,69689.0,69688.0,0.357391]
[1722237174582,0.13266885,69689.0,69688.0,0.357391]
[1722237175142,0.13266885,69689.0,69688.0,0.344391]
[1722237175346,0.13182896,69689.0,69688.0,0.344391]
[1722237176106,0.13182896,69689.0,69688.0,0.358391]
[1722237176653,0.13266885,69689.0,69688.0,0.358391]
[1722237176857,0.05462896,69689.0,69688.0,0.587985]
[1722237177473,0.05488451,69689.0,69688.0,0.587985]
[1722237177721,0.05488451,69689.0,69688.0,0.601985]
[1722237177915,0.07740839,69689.0,69688.0,0.601985]
[1722237178899,0.07740839,69689.0,69688.0,0.372391]
[1722237179219,0.07824828,69689.0,69688.0,0.372391]
[1722237179364,0.07740839,69689.0,69688.0,0.372391]
[1722237179565,0.07740839,69689.0,69688.0,0.601985]
[1722237180101,0.07744633,69689.0,69688.0,0.601985]
[1722237180624,0.02401068,69689.0,69688.0,0.372391]
[1722237180989,0.02401068,69689.0,69688.0,0.601985]
[1722237181198,0.07742964,69689.0,69688.0,0.372391]
[1722237181593,0.07826953,69689.0,69688.0,0.372391]
[1722237182204,0.07742964,69689.0,69688.0,0.372391]
[1722237182448,0.05490576,69689.0,69688.0,0.372391]
[1722237182622,0.05490576,69689.0,69688.0,0.601985]
[1722237182826,0.05490576,69689.0,69688.0,0.372391]
[1722237183032,0.05488067,69689.0,69688.0,0.372391]
[1722237183233,0.05572056,69689.0,69688.0,0.372391]
[1722237183405,0.05488067,69689.0,69688.0,0.372391]
[1722237185478,0.07740455,69689.0,69688.0,0.372391]
[1722237185718,0.02401068,69689.0,69688.0,0.372391]
[1722237185927,0.02401068,69689.0,69688.0,0.601985]
[1722237186138,0.07830967,69689.0,69688.0,0.601985]
[1722237186337,0.07746645,69689.0,69688.0,0.601985]
[1722237186534,0.18424653,69689.0,69688.0,0.601985]
[1722237186839,0.1307714,69689.0,69688.0,0.601985]
[1722237187065,0.18441593,69689.0,69688.0,0.587985]
[1722237187268,0.18441593,69689.0,69688.0,0.358391]
[1722237187469,0.07765521,69689.0,69688.0,0.358391]
[1722237187686,0.07765521,69689.0,69688.0,0.587985]
[1722237188064,0.18440419,69689.0,69688.0,0.587985]
[1722237188444,0.07765521,69689.0,69688.0,0.372391]
[1722237188786,0.07765521,69689.0,69688.0,0.601985]
[1722237188960,0.07765521,69689.0,69688.0,0.587985]
[1722237189175,0.18456136,69689.0,69688.0,0.587985]
[1722237189413,0.18456109,69689.0,69688.0,0.587985]
[1722237189622,0.18540098,69689.0,69688.0,0.587985]
[1722237189826,0.07781239,69689.0,69688.0,0.601985]
[1722237190587,0.07781239,69689.0,69688.0,0.587985]
[1722237190771,0.07781239,69689.0,69688.0,0.358391]
[1722237190977,0.07865228,69689.0,69688.0,0.372391]
[1722237191173,0.07865228,69689.0,69688.0,0.358391]
[1722237191393,0.07877944,69689.0,69688.0,0.358391]
[1722237191649,0.07877944,69689.0,69688.0,0.372391]
[1722237192465,0.02485057,69689.0,69688.0,0.372391]
[1722237193024,0.02401068,69689.0,69688.0,0.372391]
[1722237193166,0.07875707,69689.0,69688.0,0.372391]
[1722237193369,0.07791718,69689.0,69688.0,0.372391]
[1722237194810,0.05623319,69689.0,69688.0,0.372391]
[1722237195010,0.0553933,69689.0,69688.0,0.372391]
[1722237195892,0.00232669,69689.0,69688.0,0.372391]
[1722237196087,0.05625289,69689.0,69688.0,0.372391]
[1722237196344,0.0014868,69689.0,69688.0,0.372391]
[1722237196542,0.055413,69689.0,69688.0,0.372391]
[1722237196958,0.055413,69689.0,69688.0,0.142797]
[1722237197164,0.055413,69689.0,69688.0,0.372391]
[1722237198059,0.07793719,69689.0,69688.0,0.372391]
[1722237198920,0.02401099,69689.0,69688.0,0.372391]
[1722237199138,0.07797283,69689.0,69688.0,0.372391]
[1722237199337,0.05544864,69689.0,69688.0,0.372391]
[1722237200438,0.19438853,69689.0,69688.0,0.028]
[1722237200640,0.27922953,69689.0,69688.0,0.028]
[1722237200865,0.39502453,69689.0,69688.0,0.028]
[1722237201068,0.28022953,69689.0,69688.0,0.028]
[1722237201283,0.85420653,69689.0,69688.0,0.028]
[1722237201486,0.9984273,69689.0,69688.0,0.028]
[1722237201914,0.85420653,69689.0,69688.0,0.028]
[1722237202486,0.85420653,69689.0,69688.0,0.014]
[1722237202487,0.62461553,69689.0,69688.0,0.014]
[1722237202781,0.64714124,69689.0,69688.0,0.028]
[1722237203004,0.62461553,69689.0,69688.0,0.028]
[1722237204075,0.85420653,69689.0,69688.0,0.014]
[1722237204275,0.00248669,69685.0,69684.0,0.00798]
[1722237204487,0.19934853,69685.0,69684.0,0.00798]
[1722237205560,0.19934853,69685.0,69684.0,0.02198]
[1722237205561,0.14538669,69685.0,69684.0,0.02198]
[1722237205893,0.19956741,69685.0,69684.0,0.03598]
[1722237206098,0.14538669,69685.0,69684.0,0.03598]
[1722237206299,0.1996011,69685.0,69684.0,0.03598]
[1722237207707,0.22212713,69685.0,69684.0,0.03598]
[1722237208095,0.19776121,69685.0,69684.0,0.03598]
[1722237208291,0.1996011,69685.0,69684.0,0.03598]
[1722237208702,0.26018869,69685.0,69684.0,0.03598]
[1722237208848,0.31447962,69685.0,69684.0,0.03598]
[1722237210157,0.33700592,69685.0,69684.0,0.03598]
[1722237210355,0.51231899,69685.0,69684.0,0.03598]
[1722237210555,0.56637513,69685.0,69684.0,0.03598]
[1722237211463,0.65225591,69685.0,69684.0,0.03598]
[1722237211899,0.88183681,69685.0,69684.0,0.03598]
[1722237212304,1.11144081,69685.0,69684.0,0.03598]
[1722237212475,1.11044081,69685.0,69684.0,0.03598]
[1722237212680,1.11144081,69685.0,69684.0,0.03598]
[1722237213234,1.19773081,69685.0,69684.0,0.02198]
[1722237213392,1.19820451,69685.0,69684.0,0.02798]
[1722237213799,1.19820451,69685.0,69684.0,0.02198]
[1722237213998,1.19820451,69685.0,69684.0,0.02598]
[1722237214848,1.19820451,69685.0,69684.0,0.02198]
[1722237215212,1.19681354,69685.0,69684.0,0.02198]
[1722237215796,1.19683813,69685.0,69684.0,0.02198]
[1722237216433,1.21936727,69685.0,69684.0,0.02298]